[Event "7th Washington Open 2018"]
[Site "Rockville"]
[Date "2018.08.14"]
[Round "7"]
[White "Gabuzyan, Hovhannes"]
[Black "Dragun, Kamil"]
[Result "1-0"]
[ECO "A00"]
[WhiteElo "2556"]
[BlackElo "2594"]
[Annotator "ChessBase"]
[PlyCount "73"]
[EventDate "2018.08.11"]
[EventType "swiss"]
[EventCountry "USA"]
[SourceTitle "playchess.com"]
[Source "ChessBase"]
[SourceQuality "1"]
[TimeControl "40/5400+30:1200+30"]

1. g3 {[%emt 0:04:37]} g6 {[%emt 0:02:07]} 2. Bg2 {[%emt 0:00:14]} Bg7 {[%emt 0:00:07]} 3. c4 {[%emt 0:00:05]} e5 {[%emt 0:02:39]} 4. Nc3 {[%emt 0:00:14]} d6 {[%emt 0:01:19]} 5. e3 {[%emt 0:00:28]} Nf6 {[%emt 0:03:01]} 6. Nge2 {[%emt 0:00:42]} O-O {[%emt 0:05:26]} 7. O-O {[%emt 0:01:56]} c6 {[%emt 0:00:03]} 8. d4 {[%emt 0:13:36]} Re8 {[%emt 0:00:27]} 9. Qc2 {[%emt 0:00:08]} Na6 {[%emt 0:07:01]} 10. a3 {[%emt 0:01:19]} Nc7 {[%emt 0:08:12]} 11. d5 {[%emt 0:01:08]} cxd5 {[%emt 0:00:53]} 12. cxd5 {[%emt 0:00:18]} Bd7 {[%emt 0:00:39]} 13. e4 {[%emt 0:05:40]} a5 {[%emt 0:17:36]} 14. h3 {[%emt 0:10:34]} b5 {[%emt 0:02:16]} 15. Be3 {[%emt 0:05:17]} Qc8 {[%emt 0:02:12]} 16. Kh2 {[%emt 0:02:29]} b4 {[%emt 0:01:44]} 17. axb4 {[%emt 0:01:42]} axb4 {[%emt 0:00:06]} 18. Na2 {[%emt 0:00:09]} Na6 {[%emt 0:05:01]} 19. Qd2 {[%emt 0:15:31]} Nc5 {[%emt 0:05:41]} 20. Qxb4 {[%emt 0:02:41]} Ra4 {[%emt 0:10:19]} 21. Qe1 {[%emt 0:00:48]} Nb3 {[%emt 0:07:26]} 22. Nec3 {[%emt 0:00:27]} Nxa1 {[%emt 0:00:06]} 23. Nxa4 {[%emt 0:00:39]} Nc2 {[%emt 0:00:04]} 24. Qa5 {[%emt 0:00:05]} Nxe3 {[%emt 0:06:04]} 25. fxe3 {[%emt 0:00:08]} Qc2 {[%emt 0:00:02]} 26. N2c3 {[%emt 0:01:01]} Qd2 {[%emt 0:05:33]} 27. Nb6 {[%emt 0:05:50]} Qxe3 {[%emt 0:04:07]} 28. Nxd7 {[%emt 0:08:07]} Nxd7 {[%emt 0:00:01]} 29. Qc7 {[%emt 0:00:06]} Nf6 {[%emt 0:00:14]} 30. Qxd6 {[%emt 0:00:18]} Nh5 {[%emt 0:00:48]} 31. Rf3 {[%emt 0:00:02]} Qe1 {[%emt 0:00:46]} 32. Qc7 {[%emt 0:01:43]} Rf8 {[%emt 0:00:36]} 33. d6 {[%emt 0:00:50]} Bh6 {[%emt 0:00:31]} 34. Nd5 {[%emt 0:06:20]} Qxe4 {[%emt 0:00:05]} 35. Ne7+ {[%emt 0:00:55]} Kh8 {[%emt 0:00:09]} 36. d7 {[%emt 0:00:06]} Qd4 {[%emt 0:03:30]} 37. Nc6 {[%emt 0:00:09]} 1-0

[Event "7th Washington Open 2018"]
[Site "Rockville"]
[Date "2018.08.14"]
[Round "7"]
[White "Becerra, Julio J"]
[Black "Chandra, Akshat"]
[Result "1/2-1/2"]
[ECO "C67"]
[WhiteElo "2529"]
[BlackElo "2487"]
[Annotator "ChessBase"]
[PlyCount "41"]
[EventDate "2018.08.11"]
[EventType "swiss"]
[EventCountry "USA"]
[SourceTitle "playchess.com"]
[Source "ChessBase"]
[SourceQuality "1"]
[TimeControl "40/5400+30:1200+30"]

1. e4 {[%emt 0:04:44]} e5 {[%emt 0:00:00]} 2. Nf3 {[%emt 0:00:38]} Nc6 {[%emt 0:00:00]} 3. Bb5 {[%emt 0:00:19]} Nf6 {[%emt 0:00:00]} 4. O-O {[%emt 0:00:12]} Nxe4 {[%emt 0:00:11]} 5. Re1 {[%emt 0:00:18]} Nd6 {[%emt 0:00:26]} 6. Nxe5 {[%emt 0:00:31]} Be7 {[%emt 0:00:14]} 7. Bf1 {[%emt 0:00:23]} Nxe5 {[%emt 0:00:18]} 8. Rxe5 {[%emt 0:00:07]} O-O {[%emt 0:00:04]} 9. Nc3 {[%emt 0:01:34]} Ne8 {[%emt 0:00:16]} 10. Nd5 {[%emt 0:00:47]} Bd6 {[%emt 0:00:17]} 11. Re1 {[%emt 0:00:19]} c6 {[%emt 0:00:18]} 12. Ne3 {[%emt 0:00:18]} Bc7 {[%emt 0:00:37]} 13. Nf5 {[%emt 0:02:34]} d5 {[%emt 0:00:11]} 14. Ne7+ {[%emt 0:00:26]} Kh8 {[%emt 0:00:13]} 15. Nxc8 {[%emt 0:00:14]} Rxc8 {[%emt 0:00:17]} 16. d3 {[%emt 0:02:21]} f5 {[%emt 0:09:24]} 17. Qe2 {[%emt 0:12:12]} Nf6 {[%emt 0:18:33]} 18. Qe7 {[%emt 0:08:03]} Qxe7 {[%emt 0:09:15]} 19. Rxe7 {[%emt 0:00:07]} Rfe8 {[%emt 0:00:12]} 20. Rxe8+ {[%emt 0:07:12]} Rxe8 {[%emt 0:00:12]} 21. Bd2 {[%emt 0:00:22]} 1/2-1/2

[Event "7th Washington Open 2018"]
[Site "Rockville"]
[Date "2018.08.14"]
[Round "7"]
[White "Khamrakulov, Djurabek"]
[Black "Macieja, Bartlomiej"]
[Result "1-0"]
[ECO "B11"]
[WhiteElo "2489"]
[BlackElo "2528"]
[Annotator "ChessBase"]
[PlyCount "119"]
[EventDate "2018.08.11"]
[EventType "swiss"]
[EventCountry "USA"]
[SourceTitle "playchess.com"]
[Source "ChessBase"]
[SourceQuality "1"]
[TimeControl "40/5400+30:1200+30"]

1. e4 {[%emt 0:03:29]} c6 {[%emt 0:00:28]} 2. Nc3 {[%emt 0:02:29]} d5 {[%emt 0:00:18]} 3. Nf3 {[%emt 0:00:11]} Bg4 {[%emt 0:00:03]} 4. h3 {[%emt 0:00:16]} Bxf3 {[%emt 0:00:04]} 5. Qxf3 {[%emt 0:00:09]} e6 {[%emt 0:00:02]} 6. d3 {[%emt 0:00:09]} Nd7 {[%emt 0:00:02]} 7. Bd2 {[%emt 0:01:11]} Qb6 {[%emt 0:00:37]} 8. O-O-O {[%emt 0:01:02]} Bd6 {[%emt 0:00:04]} 9. g4 {[%emt 0:00:45]} Ne7 {[%emt 0:00:24]} 10. h4 {[%emt 0:01:17]} a5 {[%emt 0:01:21]} 11. Qg2 {[%emt 0:12:31]} Bb4 {[%emt 0:35:54]} 12. f4 {[%emt 0:03:17]} d4 {[%emt 0:31:06]} 13. Nb1 {[%emt 0:08:23]} Bxd2+ {[%emt 0:00:36]} 14. Qxd2 {[%emt 0:00:38]} e5 {[%emt 0:01:19]} 15. g5 {[%emt 0:02:31]} Ng6 {[%emt 0:14:56]} 16. fxe5 {[%emt 0:00:51]} Ngxe5 {[%emt 0:00:05]} 17. Bh3 {[%emt 0:01:40]} a4 {[%emt 0:04:49]} 18. Rhf1 {[%emt 0:04:58]} Qc5 {[%emt 0:00:35]} 19. a3 {[%emt 0:01:16]} h6 {[%emt 0:02:09]} 20. Bf5 {[%emt 0:13:23]} Qe7 {[%emt 0:00:46]} 21. Qf2 {[%emt 0:03:22]} c5 {[%emt 0:00:24]} 22. Bxd7+ {[%emt 0:01:12]} Kxd7 {[%emt 0:00:19]} 23. Qg3 {[%emt 0:01:39]} hxg5 {[%emt 0:01:42]} 24. hxg5 {[%emt 0:00:19]} g6 {[%emt 0:01:24]} 25. Rf6 {[%emt 0:01:26]} Ra6 {[%emt 0:01:28]} 26. Rxa6 {[%emt 0:01:15]} bxa6 {[%emt 0:00:01]} 27. Nd2 {[%emt 0:00:22]} Qe6 {[%emt 0:00:28]} 28. Rf1 {[%emt 0:07:23]} Rh3 {[%emt 0:00:19]} 29. Qg2 {[%emt 0:00:02]} Ke7 {[%emt 0:00:45]} 30. Qf2 {[%emt 0:07:48]} Kf8 {[%emt 0:01:11]} 31. Kb1 {[%emt 0:00:03]} Ng4 {[%emt 0:01:06]} 32. Qf4 {[%emt 0:02:43]} Ne3 {[%emt 0:00:13]} 33. Rg1 {[%emt 0:00:05]} c4 {[%emt 0:00:58]} 34. Qc7 {[%emt 0:06:20]} cxd3 {[%emt 0:00:28]} 35. cxd3 {[%emt 0:00:06]} Kg7 {[%emt 0:00:20]} 36. Rc1 {[%emt 0:00:40]} Ng4 {[%emt 0:00:17]} 37. Qd8 {[%emt 0:00:35]} Rh8 {[%emt 0:00:56]} 38. Qxd4+ {[%emt 0:00:11]} Qe5 {[%emt 0:00:12]} 39. Rc4 {[%emt 0:03:36]} Qxd4 {[%emt 0:00:20]} 40. Rxd4 {[%emt 0:00:03]} Rh5 {[%emt 0:00:52]} 41. Rxa4 {[%emt 0:22:24]} Rxg5 {[%emt 0:20:19]} 42. Rxa6 {[%emt 0:00:16]} Ne3 {[%emt 0:00:00]} 43. Rc6 {[%emt 0:00:00]} Rg2 {[%emt 0:00:00]} 44. Nc4 {[%emt 0:00:00]} Rg1+ {[%emt 0:00:00]} 45. Ka2 {[%emt 0:00:00]} Nc2 {[%emt 0:00:00]} 46. Rc7 {[%emt 0:00:00]} Ra1+ {[%emt 0:00:00]} 47. Kb3 {[%emt 0:00:00]} Nd4+ {[%emt 0:00:00]} 48. Kb4 {[%emt 0:00:00]} g5 {[%emt 0:00:00]} 49. Rd7 {[%emt 0:00:00]} Nf3 {[%emt 0:01:02]} 50. Rd5 {[%emt 0:00:00]} Rg1 {[%emt 0:03:32]} 51. a4 {[%emt 0:00:23]} g4 {[%emt 0:00:22]} 52. Ne3 {[%emt 0:01:05]} f6 {[%emt 0:00:51]} 53. a5 {[%emt 0:00:50]} g3 {[%emt 0:00:19]} 54. a6 {[%emt 0:00:32]} Ne5 {[%emt 0:00:22]} 55. Kb5 {[%emt 0:01:39]} Kf7 {[%emt 0:00:38]} 56. a7 {[%emt 0:00:24]} Ra1 {[%emt 0:00:14]} 57. Kb6 {[%emt 0:00:24]} Ra2 {[%emt 0:00:53]} 58. Ra5 {[%emt 0:03:45]} Nd7+ {[%emt 0:00:32]} 59. Ka6 {[%emt 0:00:14]} Rxb2 {[%emt 0:00:21]} 60. a8=Q {[%emt 0:00:16]} 1-0

[Event "7th Washington Open 2018"]
[Site "Rockville"]
[Date "2018.08.14"]
[Round "7"]
[White "Checa, Nicolas D"]
[Black "Postny, Evgeny"]
[Result "1/2-1/2"]
[ECO "D25"]
[WhiteElo "2478"]
[BlackElo "2586"]
[Annotator "ChessBase"]
[PlyCount "69"]
[EventDate "2018.08.11"]
[EventType "swiss"]
[EventCountry "USA"]
[SourceTitle "playchess.com"]
[Source "ChessBase"]
[SourceQuality "1"]
[TimeControl "40/5400+30:1200+30"]

1. d4 {[%emt 0:00:00]} d5 {[%emt 0:02:50]} 2. Nf3 {[%emt 0:00:36]} Nf6 {[%emt 0:00:07]} 3. c4 {[%emt 0:00:43]} dxc4 {[%emt 0:00:07]} 4. e3 {[%emt 0:01:55]} b5 {[%emt 0:00:07]} 5. a4 {[%emt 0:02:12]} b4 {[%emt 0:00:07]} 6. Bxc4 {[%emt 0:00:05]} e6 {[%emt 0:00:07]} 7. O-O {[%emt 0:09:07]} Be7 {[%emt 0:00:08]} 8. Qe2 {[%emt 0:04:06]} Bb7 {[%emt 0:00:25]} 9. Nbd2 {[%emt 0:00:19]} O-O {[%emt 0:02:10]} 10. b3 {[%emt 0:03:20]} c5 {[%emt 0:03:28]} 11. Bb2 {[%emt 0:07:39]} Nbd7 {[%emt 0:05:39]} 12. Rfd1 {[%emt 0:00:14]} Rc8 {[%emt 0:10:37]} 13. dxc5 {[%emt 0:06:45]} Qc7 {[%emt 0:02:38]} 14. Rac1 {[%emt 0:03:22]} Qb8 {[%emt 0:01:49]} 15. c6 {[%emt 0:11:32]} Rxc6 {[%emt 0:08:34]} 16. Bb5 {[%emt 0:02:08]} Rxc1 {[%emt 0:01:40]} 17. Rxc1 {[%emt 0:00:04]} Rc8 {[%emt 0:02:02]} 18. Rxc8+ {[%emt 0:03:57]} Qxc8 {[%emt 0:02:25]} 19. Qc4 {[%emt 0:00:23]} Qxc4 {[%emt 0:06:30]} 20. Bxc4 {[%emt 0:01:12]} Nc5 {[%emt 0:01:13]} 21. Ne1 {[%emt 0:05:57]} Nfe4 {[%emt 0:03:00]} 22. Nxe4 {[%emt 0:00:59]} Nxe4 {[%emt 0:00:14]} 23. Nf3 {[%emt 0:03:51]} Bf6 {[%emt 0:12:07]} 24. Bxf6 {[%emt 0:02:20]} gxf6 {[%emt 0:01:26]} 25. a5 {[%emt 0:09:12]} Nd6 {[%emt 0:05:48]} 26. Be2 {[%emt 0:00:35]} Bd5 {[%emt 0:11:23]} 27. Nd4 {[%emt 0:00:24]} Nb7 {[%emt 0:00:28]} 28. a6 {[%emt 0:00:39]} Na5 {[%emt 0:02:21]} 29. Nb5 {[%emt 0:02:35]} Nc6 {[%emt 0:00:07]} 30. Bf3 {[%emt 0:00:21]} Bxf3 {[%emt 0:01:43]} 31. gxf3 {[%emt 0:00:10]} Nb8 {[%emt 0:00:29]} 32. Nxa7 {[%emt 0:00:29]} Nxa6 {[%emt 0:00:05]} 33. Kf1 {[%emt 0:00:07]} Nc5 {[%emt 0:00:13]} 34. Nc6 {[%emt 0:00:05]} Nxb3 {[%emt 0:00:05]} 35. Nxb4 {[%emt 0:00:04]} 1/2-1/2

[Event "7th Washington Open 2018"]
[Site "Rockville"]
[Date "2018.08.15"]
[Round "9"]
[White "Stukopin, Andrey"]
[Black "Postny, Evgeny"]
[Result "1/2-1/2"]
[ECO "B13"]
[WhiteElo "2598"]
[BlackElo "2586"]
[Annotator "ChessBase"]
[PlyCount "35"]
[EventDate "2018.08.11"]
[EventType "swiss"]
[EventCountry "USA"]
[SourceTitle "playchess.com"]
[Source "ChessBase"]
[SourceQuality "1"]
[TimeControl "40/5400+30:1200+30"]

1. e4 {[%emt 0:01:16]} c6 {[%emt 0:00:17]} 2. d4 {[%emt 0:00:53]} d5 {[%emt 0:00:05]} 3. exd5 {[%emt 0:00:47]} cxd5 {[%emt 0:00:06]} 4. Bd3 {[%emt 0:00:04]} Nc6 {[%emt 0:00:29]} 5. c3 {[%emt 0:00:05]} Nf6 {[%emt 0:01:09]} 6. Bf4 {[%emt 0:00:21]} Bg4 {[%emt 0:00:31]} 7. Qb3 {[%emt 0:00:12]} e5 {[%emt 0:00:20]} 8. Bxe5 {[%emt 0:07:49]} Qe7 {[%emt 0:05:32]} 9. Ne2 {[%emt 0:13:44]} Nxe5 {[%emt 0:04:36]} 10. dxe5 {[%emt 0:00:06]} Qxe5 {[%emt 0:00:06]} 11. Qxb7 {[%emt 0:00:25]} Rb8 {[%emt 0:00:10]} 12. Qxa7 {[%emt 0:00:03]} Rxb2 {[%emt 0:06:03]} 13. Qa8+ {[%emt 0:00:45]} Kd7 {[%emt 0:05:44]} 14. Qa7+ {[%emt 0:07:33]} Kd8 {[%emt 0:04:58]} 15. Qa8+ {[%emt 0:09:11]} Kc7 {[%emt 0:00:43]} 16. Qa7+ {[%emt 0:00:29]} Kd8 {[%emt 0:07:15]} 17. Qa8+ {[%emt 0:00:25]} Kc7 {[%emt 0:04:42]} 18. Qa7+ {[%emt 0:00:11]} 1/2-1/2

[Event "7th Washington Open 2018"]
[Site "Rockville"]
[Date "2018.08.15"]
[Round "9"]
[White "Azarov, Sergei Nikolaevich"]
[Black "Dragun, Kamil"]
[Result "1/2-1/2"]
[ECO "B35"]
[WhiteElo "2574"]
[BlackElo "2594"]
[Annotator "RC"]
[PlyCount "69"]
[EventDate "2018.08.11"]
[EventType "swiss"]
[EventCountry "USA"]
[SourceTitle "playchess.com"]
[Source "ChessBase"]
[SourceQuality "1"]
[TimeControl "40/5400+30:1200+30"]

1. e4 c5 {[%emt 0:04:13]} 2. Nf3 {[%emt 0:00:00]} g6 {[%emt 0:00:09]} 3. d4 {[%emt 0:00:34]} cxd4 {[%emt 0:00:18]} 4. Nxd4 {[%emt 0:00:10]} Bg7 {[%emt 0:00:48]} 5. Nc3 {[%emt 0:01:22]} Nc6 {[%emt 0:00:22]} 6. Be3 {[%emt 0:00:27]} Nf6 {[%emt 0:00:28]} 7. Bc4 {[%emt 0:01:29]} O-O {[%emt 0:02:44]} 8. Bb3 {[%emt 0:01:00]} Re8 {[%emt 0:02:33]} 9. f3 {[%emt 0:08:49]} e6 {[%emt 0:04:06]} 10. f4 {[%emt 0:00:41]} Nd5 {[%emt 0:40:55]} 11. exd5 {[%emt 0:23:54]} exd5 {[%emt 0:00:38]} 12. Kf2 {[%emt 0:01:00]} Rxe3 {[%emt 0:00:20]} 13. Kxe3 {[%emt 0:00:22]} Nxd4 {[%emt 0:02:13]} 14. Nxd5 {[%emt 0:03:04]} Nf5+ {[%emt 0:05:24]} 15. Kd2 {[%emt 0:18:45]} Bxb2 {[%emt 0:00:21]} 16. Re1 {[%emt 0:13:02]} d6 {[%emt 0:00:58]} 17. c3 {[%emt 0:03:23]} Be6 {[%emt 0:14:58]} 18. Rb1 {[%emt 0:00:28]} Ba3 {[%emt 0:01:17]} 19. g4 {[%emt 0:03:36]} Nd4 {[%emt 0:07:28]} 20. cxd4 {[%emt 0:01:26]} Bxd5 {[%emt 0:00:14]} 21. Bxd5 {[%emt 0:00:33]} Qa5+ {[%emt 0:00:01]} 22. Kd3 {[%emt 0:00:27]} Qxd5 {[%emt 0:00:01]} 23. Qb3 {[%emt 0:00:40]} Qf3+ {[%emt 0:00:23]} 24. Re3 {[%emt 0:00:16]} Qxg4 {[%emt 0:00:05]} 25. Qd5 {[%emt 0:01:04]} Rf8 {[%emt 0:04:48]} 26. h3 {[%emt 0:03:06]} Qxf4 {[%emt 0:02:25]} 27. Rf3 {[%emt 0:00:19]} Qh2 {[%emt 0:00:03]} 28. Rbf1 {[%emt 0:09:59]} Bb4 {[%emt 0:00:39]} 29. R1f2 {[%emt 0:00:43]} Qh1 {[%emt 0:00:12]} 30. Rf1 {[%emt 0:00:18]} Qg2 31. R1f2 Qh1 {[%emt 0:00:22]} 32. Rf1 {[%emt 0:04:27]} Qg2 {[%emt 0:00:02]} 33. R1f2 {[%emt 0:00:26]} Qh1 {[%emt 0:00:01]} 34. Rf1 {[%emt 0:00:35]} Qg2 {[%emt 0:00:05]} 35. Ke4 1/2-1/2

[Event "7th Washington Open 2018"]
[Site "Rockville"]
[Date "2018.08.15"]
[Round "9"]
[White "Gabuzyan, Hovhannes"]
[Black "Huschenbeth, Niclas"]
[Result "1/2-1/2"]
[ECO "A06"]
[WhiteElo "2556"]
[BlackElo "2590"]
[Annotator "RC"]
[PlyCount "52"]
[EventDate "2018.08.11"]
[EventType "swiss"]
[EventCountry "USA"]
[SourceTitle "playchess.com"]
[Source "ChessBase"]
[SourceQuality "1"]
[TimeControl "40/5400+30:1200+30"]

1. Nf3 {[%emt 0:02:25]} d5 {[%emt 0:00:00]} 2. g3 {[%emt 0:00:05]} Nf6 {[%emt 0:01:19]} 3. Bg2 {[%emt 0:00:04]} e6 {[%emt 0:00:14]} 4. c4 {[%emt 0:00:05]} d4 {[%emt 0:00:04]} 5. O-O {[%emt 0:01:15]} c5 {[%emt 0:00:03]} 6. d3 {[%emt 0:00:05]} Nc6 {[%emt 0:00:11]} 7. e3 {[%emt 0:00:14]} Bd6 {[%emt 0:00:15]} 8. exd4 {[%emt 0:00:06]} cxd4 {[%emt 0:00:03]} 9. a3 {[%emt 0:01:12]} a5 {[%emt 0:00:09]} 10. Bg5 {[%emt 0:00:08]} h6 {[%emt 0:00:04]} 11. Bxf6 {[%emt 0:00:05]} Qxf6 {[%emt 0:00:03]} 12. Nbd2 {[%emt 0:00:05]} Qe7 {[%emt 0:00:29]} 13. Re1 {[%emt 0:00:29]} O-O {[%emt 0:00:48]} 14. Rc1 {[%emt 0:07:13]} Rd8 {[%emt 0:12:23]} 15. Qe2 {[%emt 0:00:55]} a4 {[%emt 0:05:26]} 16. Ne4 {[%emt 0:01:14]} Bc7 {[%emt 0:00:34]} 17. c5 {[%emt 0:00:15]} Bd7 {[%emt 0:14:20]} 18. Nfd2 {[%emt 0:02:28]} Na5 {[%emt 0:03:29]} 19. f4 {[%emt 0:08:07]} Bc6 {[%emt 0:01:23]} 20. Qh5 {[%emt 0:01:48]} Qd7 {[%emt 0:24:57]} 21. Re2 {[%emt 0:06:09]} Bb5 {[%emt 0:04:51]} 22. Nf2 {[%emt 0:05:19]} f5 {[%emt 0:02:10]} 23. Rce1 {[%emt 0:05:19]} Re8 {[%emt 0:00:17]} 24. Nf3 {[%emt 0:01:47]} Nc6 {[%emt 0:02:01]} 25. Nh4 {[%emt 0:10:06]} Qf7 {[%emt 0:01:03]} 26. Bf3 {[%emt 0:00:17]} Ba5 {[%emt 0:11:00]} 1/2-1/2

[Event "7th Washington Open 2018"]
[Site "Rockville"]
[Date "2018.08.15"]
[Round "9"]
[White "Becerra, Julio J"]
[Black "Henderson de la Fuente, Lance"]
[Result "1-0"]
[ECO "C12"]
[WhiteElo "2529"]
[BlackElo "2485"]
[Annotator "ChessBase"]
[PlyCount "89"]
[EventDate "2018.08.11"]
[EventType "swiss"]
[EventCountry "USA"]
[SourceTitle "playchess.com"]
[Source "ChessBase"]
[SourceQuality "1"]
[TimeControl "40/5400+30:1200+30"]

1. e4 {[%emt 0:01:14]} e6 {[%emt 0:00:00]} 2. d4 {[%emt 0:00:31]} d5 {[%emt 0:00:00]} 3. Nc3 {[%emt 0:00:14]} Nf6 {[%emt 0:00:00]} 4. Bg5 {[%emt 0:00:20]} Bb4 {[%emt 0:00:06]} 5. e5 {[%emt 0:00:14]} h6 {[%emt 0:00:08]} 6. Bd2 {[%emt 0:00:15]} Bxc3 {[%emt 0:00:18]} 7. bxc3 {[%emt 0:00:08]} Ne4 {[%emt 0:00:11]} 8. Qg4 {[%emt 0:00:11]} Kf8 {[%emt 0:00:17]} 9. Bd3 {[%emt 0:00:45]} Nxd2 {[%emt 0:00:21]} 10. Kxd2 {[%emt 0:00:06]} c5 {[%emt 0:00:25]} 11. Nf3 {[%emt 0:00:19]} c4 {[%emt 0:00:35]} 12. Be2 {[%emt 0:00:06]} Nc6 {[%emt 0:00:20]} 13. Qf4 {[%emt 0:10:56]} Bd7 {[%emt 0:02:29]} 14. Rhb1 {[%emt 0:03:38]} Rb8 {[%emt 0:00:59]} 15. h4 {[%emt 0:00:29]} Qe7 {[%emt 0:05:49]} 16. a3 {[%emt 0:01:38]} Kg8 {[%emt 0:01:23]} 17. g4 {[%emt 0:02:55]} b5 {[%emt 0:03:25]} 18. h5 {[%emt 0:01:26]} f6 {[%emt 0:03:03]} 19. a4 {[%emt 0:07:56]} b4 {[%emt 0:02:27]} 20. cxb4 {[%emt 0:01:36]} Rxb4 {[%emt 0:01:34]} 21. c3 {[%emt 0:03:26]} Rxb1 {[%emt 0:03:22]} 22. Rxb1 {[%emt 0:00:05]} fxe5 {[%emt 0:03:40]} 23. Nxe5 {[%emt 0:13:18]} Nxe5 {[%emt 0:00:20]} 24. dxe5 {[%emt 0:01:41]} Bxa4 {[%emt 0:01:14]} 25. Ra1 {[%emt 0:01:03]} Bb5 {[%emt 0:06:25]} 26. Bd1 {[%emt 0:00:22]} a6 {[%emt 0:00:26]} 27. Bc2 {[%emt 0:09:09]} Qg5 {[%emt 0:00:25]} 28. Ke3 {[%emt 0:06:15]} Qxf4+ {[%emt 0:01:01]} 29. Kxf4 {[%emt 0:00:02]} Kf7 {[%emt 0:01:16]} 30. Ke3 {[%emt 0:01:00]} Ra8 {[%emt 0:00:40]} 31. Ra5 {[%emt 0:01:16]} Ke7 {[%emt 0:00:48]} 32. f4 {[%emt 0:00:11]} Kd7 {[%emt 0:02:25]} 33. Kd4 {[%emt 0:01:12]} Kc6 {[%emt 0:03:05]} 34. f5 {[%emt 0:03:16]} Kb6 {[%emt 0:02:01]} 35. Ra1 {[%emt 0:00:08]} Bd7 {[%emt 0:03:39]} 36. fxe6 {[%emt 0:02:41]} Bxe6 {[%emt 0:00:08]} 37. Bf5 {[%emt 0:00:04]} Bf7 {[%emt 0:25:30]} 38. Bd7 {[%emt 0:06:01]} Kc7 {[%emt 0:01:42]} 39. e6 {[%emt 0:00:30]} Kd6 {[%emt 0:03:47]} 40. exf7 {[%emt 0:00:23]} Kxd7 {[%emt 0:00:13]} 41. Rxa6 {[%emt 0:20:13]} Rb8 {[%emt 0:34:53]} 42. Rg6 {[%emt 0:04:38]} Ke7 {[%emt 0:00:15]} 43. Rxg7 {[%emt 0:00:07]} Rb1 {[%emt 0:01:53]} 44. Kxd5 {[%emt 0:00:19]} Kf8 {[%emt 0:00:53]} 45. Rg6 {[%emt 0:00:39]} 1-0